fUST/lending_fUST_20250104
["ID","MTS","AMOUNT","RATE_DAILY","PERIOD"]
[347591676,1735933847388,-500.0,0.00019178,2]
[347591677,1735933847398,-500.0,0.00019178,2]
[347591678,1735933847408,-504.70799912,0.00019178,2]
[347591679,1735933847418,-897.94,0.00019178,2]
[347591680,1735933847429,-500.0,0.00019178,2]
[347591681,1735933847439,-365.73285434,0.00019178,2]
[347591682,1735933847449,-369.6719459,0.00019178,2]
[347591683,1735933847458,-500.0,0.00019178,2]
[347591684,1735933847468,-1139.83,0.00019178,2]
[347591685,1735933847477,-500.0,0.00019178,2]
[347591686,1735933847487,-500.0,0.00019178,2]
[347591687,1735933847498,-500.0,0.00019178,2]
[347591688,1735933847507,-125.70131606,0.00019178,2]
[347591689,1735934448534,161.063153,0.00013973,2]
[347591976,1735935035338,-250.0,0.00017019,2]
[347591978,1735935035347,-250.0,0.00017717,2]
[347591980,1735935035356,-33.37663249,0.00018353,2]
[347591982,1735935035368,-266.62336751,0.00018353,2]
[347591984,1735935035377,-12704.98471676,0.00018354,2]
[347591987,1735935035387,-500.0,0.00018412,5]
[347591988,1735935035398,-1185.8230703,0.00018496,2]
[347591990,1735935035407,-391.66422128,0.00018496,2]
[347591992,1735935035416,-12704.98471676,0.00018556,2]
[347591994,1735935035425,-507.928,0.0001862,2]
[347591996,1735935035435,-155.3,0.00018628,2]
[347591998,1735935035444,-8206.29859509,0.00018852,2]
[347592001,1735935035456,-738.20142119,0.00018852,2]
[347592003,1735935035468,-3360.3,0.00018852,2]
[347592005,1735935035479,-400.18470048,0.00018852,2]
[347592007,1735935035488,-685.72229952,0.000189,2]
[347592009,1735935035499,-263.14165916,0.000189,2]
[347592011,1735935035511,-2653.77430206,0.000189,2]
[347592013,1735935035520,-206.71128638,0.00018978,3]
[347592015,1735935035532,-6.14034315,0.00018978,3]
[347592017,1735935035541,-6981.77837391,0.0001905,2]
[347592019,1735935035553,-5723.20634285,0.0001905,2]
[347592021,1735935035563,-376.37683528,0.00019078,2]
[347592023,1735935035572,-302.84859387,0.00019082,2]
[347592025,1735935035582,-156.17,0.00019109,2]
[347592027,1735935035592,-376.37683528,0.00019147,2]
[347592029,1735935035601,-500.0,0.00019173,2]
[347592031,1735935035611,-500.0,0.00019173,2]
[347592033,1735935035620,-500.0,0.00019173,2]
[347592035,1735935035629,-500.56620949,0.00019173,2]
[347592037,1735935035641,-94688.96433622,0.00019178,2]
[347592039,1735935035652,-4207.20228806,0.00019178,2]
[347592041,1735935035661,-224.7753108,0.00019178,2]
[347592043,1735935035670,-502.31632052,0.00019178,2]
[347592045,1735935035680,-501.20819634,0.00019178,2]
[347592047,1735935035690,-500.0,0.00019178,2]
[347592048,1735935035699,-500.0,0.00019178,2]
[347592050,1735935035709,-500.0,0.00019178,2]
[347592052,1735935035719,-212.14802417,0.00019178,2]
[347592054,1735935035729,-500.0,0.00019178,2]
[347592057,1735935035739,-500.0,0.00019178,2]
[347592059,1735935035749,-500.0,0.00019178,2]
[347592060,1735935035759,-500.0,0.00019178,2]
[347592063,1735935035768,-507.55141132,0.00019178,2]
[347592065,1735935035778,-500.0,0.00019178,2]
[347592066,1735935035787,-500.0,0.00019178,2]
[347592068,1735935035796,-500.0,0.00019178,2]
[347592070,1735935035806,-174.43499517,0.00019178,2]
[347592073,1735935035817,-500.0,0.00019178,2]
[347592075,1735935035826,-500.0,0.00019178,2]
[347592076,1735935035835,-500.0,0.00019178,2]
[347592078,1735935035845,-500.0,0.00019178,2]
[347592080,1735935035855,-570.43356481,0.00019178,2]
[347592083,1735935035864,-500.0,0.00019178,2]
[347592084,1735935035873,-500.0,0.00019178,2]
[347592086,1735935035883,-500.0,0.00019178,2]
[347592089,1735935035894,-500.0,0.00019178,2]
[347592091,1735935035904,-491.89023735,0.00019178,2]
[347592092,1735935035913,-500.0,0.00019178,2]
[347592094,1735935035923,-500.0,0.00019178,2]
[347592096,1735935035932,-500.0,0.00019178,2]
[347592098,1735935035941,-522.49789975,0.00019178,2]
[347592100,1735935035951,-500.0,0.00019178,2]
[347592102,1735935035961,-500.0,0.00019178,2]
[347592104,1735935035970,-500.0,0.00019178,2]
[347592106,1735935035979,-506.32448337,0.00019178,2]
[347592108,1735935035989,-500.0,0.00019178,2]
[347592110,1735935036000,-608.94,0.00019178,2]
[347592112,1735935036009,-500.0,0.00019178,2]
[347592114,1735935036018,-500.0,0.00019178,2]
[347592116,1735935036027,-500.0,0.00019178,2]
[347592118,1735935036036,-500.0,0.00019178,2]
[347592120,1735935036046,-500.0,0.00019178,2]
[347592122,1735935036055,-500.0,0.00019178,2]
[347592124,1735935036065,-500.0,0.00019178,2]
[347592126,1735935036074,-500.0,0.00019178,2]
[347592128,1735935036084,-500.0,0.00019178,2]
[347592130,1735935036093,-500.0,0.00019178,2]
[347592132,1735935036104,-500.0,0.00019178,2]
[347592134,1735935036114,-500.0,0.00019178,2]
[347592136,1735935036124,-500.0,0.00019178,2]
[347592138,1735935036134,-500.0,0.00019178,2]
[347592140,1735935036147,-500.0,0.00019178,2]
[347592142,1735935036157,-500.0,0.00019178,2]
[347592144,1735935036167,-500.0,0.00019178,2]
[347592146,1735935036177,-500.0,0.00019178,2]
[347592148,1735935036187,-500.0,0.00019178,2]
[347592149,1735935036198,-500.0,0.00019178,2]
[347592151,1735935036208,-500.0,0.00019178,2]
[347592153,1735935036218,-500.0,0.00019178,2]
[347592155,1735935036229,-500.0,0.00019178,2]
[347592157,1735935036239,-623.09,0.00019178,2]
[347592159,1735935036249,-500.0,0.00019178,2]
[347592161,1735935036258,-582.01,0.00019178,2]
[347592163,1735935036268,-500.0,0.00019178,2]
[347592165,1735935036278,-180.21616604,0.00019178,2]
[347592167,1735935036288,-500.0,0.00019178,2]
[347592169,1735935036298,-595.35,0.00019178,2]
[347592171,1735935036309,-500.0,0.00019178,2]
[347592173,1735935036319,-500.0,0.00019178,2]
[347592175,1735935036328,-500.0,0.00019178,2]
[347592177,1735935036337,-504.6511801,0.00019178,2]
[347592179,1735935036347,-500.0,0.00019178,2]
[347592181,1735935036357,-500.0,0.00019178,2]
[347592183,1735935036366,-156.25930558,0.00019178,2]
[347592185,1735935036376,-500.0,0.00019178,2]
[347592187,1735935036385,-500.0,0.00019178,2]
[347592189,1735935036399,-500.0,0.00019178,2]
[347592191,1735935036409,-500.0,0.00019178,2]
[347592193,1735935036419,-500.0,0.00019178,2]
[347592195,1735935036428,-553.7,0.00019178,2]
[347592197,1735935036438,-500.0,0.00019178,2]
[347592199,1735935036447,-500.0,0.00019178,2]
[347592201,1735935036457,-388.38,0.00019178,2]
[347592203,1735935036466,-500.0,0.00019178,2]
[347592205,1735935036476,-518.81,0.00019178,2]
[347592207,1735935036485,-4308.3,0.00019178,2]
[347592209,1735935036495,-500.0,0.00019178,2]
[347592211,1735935036504,-673.74,0.00019178,2]
[347592213,1735935036513,-500.0,0.00019178,2]
[347592215,1735935036523,-220.37841522,0.00019178,2]
[347592217,1735935036533,-500.0,0.00019178,2]
[347592219,1735935036542,-500.0,0.00019178,2]
[347592221,1735935036552,-985.06,0.00019178,2]
[347592223,1735935036561,-768.999621,0.00019178,2]
[347592225,1735935036570,-897.3,0.00019178,2]
[347592227,1735935036579,-768.999621,0.00019178,2]
[347592229,1735935036589,-178.758946,0.00019178,2]
[347592231,1735935036598,-178.758946,0.00019178,2]
[347592233,1735935036608,-768.999621,0.00019178,2]
[347592235,1735935036617,-768.999621,0.00019178,2]
[347592237,1735935036627,-500.0,0.00019178,2]
[347592239,1735935036639,-178.758946,0.00019178,2]
[347592241,1735935036649,-178.758946,0.00019178,2]
[347592243,1735935036658,-500.0,0.00019178,2]
[347592244,1735935036669,-500.0,0.00019178,2]
[347592246,1735935036678,-500.76,0.00019178,2]
[347592248,1735935036690,-798.42,0.00019178,2]
[347592250,1735935036699,-583.53,0.00019178,2]
[347592253,1735935036710,-311.410945,0.00019178,2]
[347592255,1735935036721,-311.410945,0.00019178,2]
[347592257,1735935036731,-500.0,0.00019178,2]
[347592259,1735935036740,-500.0,0.00019178,2]
[347592261,1735935036749,-311.410945,0.00019178,2]
[347592262,1735935036758,-500.0,0.00019178,2]
[347592264,1735935036768,-311.410945,0.00019178,2]
[347592266,1735935036777,-500.0,0.00019178,2]
[347592268,1735935036786,-195.1000239,0.00019178,2]
[347592270,1735935036795,-500.0,0.00019178,2]
[347592272,1735935036805,-500.0,0.00019178,2]
[347592274,1735935036814,-500.0,0.00019178,2]
[347592277,1735935036824,-500.0,0.00019178,2]
[347592278,1735935036834,-713.92,0.00019178,2]
[347592281,1735935036844,-500.0,0.00019178,2]
[347592282,1735935036853,-500.0,0.00019178,2]
[347592284,1735935036862,-500.0,0.00019178,2]
[347592286,1735935036872,-500.0,0.00019178,2]
[347592289,1735935036881,-151.0,0.00019178,2]
[347592290,1735935036892,-151.0,0.00019178,2]
[347592292,1735935036902,-500.0,0.00019178,2]
[347592294,1735935036911,-500.0,0.00019178,2]
[347592312,1735935037063,-500.0,0.00019178,2]
[347592314,1735935037073,-500.0,0.00019178,2]
[347592316,1735935037082,-500.0,0.00019178,2]
[347592318,1735935037092,-500.0,0.00019178,2]
[347592320,1735935037101,-500.0,0.00019178,2]
[347592322,1735935037111,-500.0,0.00019178,2]
[347592324,1735935037120,-500.0,0.00019178,2]
[347592326,1735935037130,-485.62157746,0.00019178,2]
[347592328,1735935037139,-500.0,0.00019178,2]
[347592330,1735935037149,-500.0,0.00019178,2]
[347592332,1735935037157,-500.0,0.00019178,2]
[347592334,1735935037166,-500.0,0.00019178,2]
[347592336,1735935037177,-500.0,0.00019178,2]
[347592338,1735935037186,-500.0,0.00019178,2]
[347592340,1735935037196,-500.0,0.00019178,2]
[347592342,1735935037207,-500.0,0.00019178,2]
[347592344,1735935037216,-955.12,0.00019178,2]
[347592346,1735935037226,-500.0,0.00019178,2]
[347592348,1735935037235,-500.0,0.00019178,2]
[347592350,1735935037244,-790.57,0.00019178,2]
[347592352,1735935037253,-508.4720901,0.00019178,2]
[347592354,1735935037263,-501.89852628,0.00019178,2]
[347592356,1735935037274,-500.0,0.00019178,2]
[347592358,1735935037284,-500.0,0.00019178,2]
[347592360,1735935037293,-579.12510319,0.00019178,2]
[347592362,1735935037302,-500.0,0.00019178,2]
[347592364,1735935037312,-500.0,0.00019178,2]
[347592366,1735935037322,-500.0,0.00019178,2]
[347592368,1735935037331,-504.79859755,0.00019178,2]
[347592370,1735935037340,-500.0,0.00019178,2]
[347592372,1735935037349,-525.25757993,0.00019178,2]
[347592374,1735935037358,-500.0,0.00019178,2]
[347592376,1735935037367,-500.0,0.00019178,2]
[347592378,1735935037376,-500.0,0.00019178,2]
[347592380,1735935037386,-151.0,0.00019178,2]
[347592382,1735935037396,-151.0,0.00019178,2]
[347592383,1735935037406,-500.0,0.00019178,2]
[347592385,1735935037415,-500.0,0.00019178,2]
[347592387,1735935037424,-500.0,0.00019178,2]
[347592389,1735935037434,-500.0,0.00019178,2]
[347592391,1735935037442,-500.0,0.00019178,2]
[347592393,1735935037451,-522.59708065,0.00019178,2]
[347592395,1735935037460,-845.67,0.00019178,2]
[347592397,1735935037470,-500.0,0.00019178,2]
[347592399,1735935037480,-500.0,0.00019178,2]
[347592401,1735935037489,-500.0,0.00019178,2]
[347592403,1735935037502,-500.0,0.00019178,2]
[347592405,1735935037514,-500.0,0.00019178,2]
[347592407,1735935037528,-500.0,0.00019178,2]
[347592409,1735935037541,-500.0,0.00019178,2]
[347592411,1735935037551,-195.048923,0.00019178,2]
[347592413,1735935037561,-500.0,0.00019178,2]
[347592415,1735935037570,-500.0,0.00019178,2]
[347592417,1735935037580,-500.0,0.00019178,2]
[347592419,1735935037590,-500.0,0.00019178,2]
[347592421,1735935037600,-195.048923,0.00019178,2]
[347592423,1735935037609,-500.0,0.00019178,2]
[347592425,1735935037618,-538.3,0.00019178,2]
[347592427,1735935037631,-579.79,0.00019178,2]
[347592429,1735935037646,-500.0,0.00019178,2]
[347592431,1735935037671,-151.0,0.00019178,2]
[347592433,1735935037687,-500.0,0.00019178,2]
[347592435,1735935037698,-151.0,0.00019178,2]
[347592437,1735935037708,-500.0,0.00019178,2]
[347592440,1735935037717,-500.0,0.00019178,2]
[347592441,1735935037727,-500.0,0.00019178,2]
[347592444,1735935037736,-500.0,0.00019178,2]
[347592445,1735935037746,-151.0,0.00019178,2]
[347592447,1735935037755,-151.0,0.00019178,2]
[347592449,1735935037764,-500.0,0.00019178,2]
[347592451,1735935037773,-500.0,0.00019178,2]
[347592453,1735935037782,-500.0,0.00019178,2]
[347592455,1735935037792,-500.0,0.00019178,2]
[347592456,1735935037801,-500.0,0.00019178,2]
[347592458,1735935037810,-3720.24,0.00019178,2]
[347592460,1735935037819,-500.0,0.00019178,2]
[347592462,1735935037828,-500.0,0.00019178,2]
[347592463,1735935037837,-500.0,0.00019178,2]
[347592464,1735935037846,-196.47928503,0.00019178,2]
[347592465,1735935037856,-500.0,0.00019178,2]
[347592466,1735935037866,-1526.26,0.00019178,2]
[347592467,1735935037875,-7913.48,0.00019178,2]
[347592468,1735935037885,-500.0,0.00019178,2]
[347592469,1735935037897,-581.09961166,0.00019178,2]
[347592470,1735935037906,-500.0,0.00019178,2]
[347592471,1735935037915,-500.0,0.00019178,2]
[347592472,1735935037924,-1528.64,0.00019178,2]
[347592473,1735935037934,-500.0,0.00019178,2]
[347592474,1735935037944,-500.0,0.00019178,2]
[347592475,1735935037954,-500.0,0.00019178,2]
[347592476,1735935037963,-500.0,0.00019178,2]
[347592477,1735935037973,-1326.61,0.00019178,2]
[347592478,1735935037982,-500.0,0.00019178,2]
[347592479,1735935037991,-630.92495434,0.00019178,2]
[347592480,1735935038000,-500.0,0.00019178,2]
[347592481,1735935038010,-500.0,0.00019178,2]
[347592483,1735935038018,-500.0,0.00019178,2]
[347592484,1735935038028,-500.0,0.00019178,2]
[347592485,1735935038037,-500.0,0.00019178,2]
[347592486,1735935038047,-500.0,0.00019178,2]
[347592487,1735935038056,-500.0,0.00019178,2]
[347592488,1735935038065,-1403.39,0.00019178,2]
[347592490,1735935038075,-500.0,0.00019178,2]
[347592491,1735935038084,-509.26,0.00019178,2]
[347592492,1735935038093,-500.0,0.00019178,2]
[347592493,1735935038102,-500.0,0.00019178,2]
[347592494,1735935038111,-500.0,0.00019178,2]
[347592495,1735935038120,-500.0,0.00019178,2]
[347592496,1735935038129,-500.0,0.00019178,2]
[347592497,1735935038138,-500.0,0.00019178,2]
[347592498,1735935038148,-1381.73,0.00019178,2]
[347592499,1735935038156,-500.0,0.00019178,2]
[347592500,1735935038166,-4882.26,0.00019178,2]
[347592501,1735935038175,-500.0,0.00019178,2]
[347592502,1735935038183,-1157.0,0.00019178,2]
[347592503,1735935038192,-398.82317349,0.00019178,2]
[347592504,1735935038203,-500.0,0.00019178,2]
[347592507,1735935038214,-500.0,0.00019178,2]
[347592509,1735935038224,-500.0,0.00019178,2]
[347592510,1735935038233,-500.0,0.00019178,2]
[347592512,1735935038242,-500.0,0.00019178,2]
[347592513,1735935038251,-3918.25,0.00019178,2]
[347592514,1735935038260,-500.0,0.00019178,2]
[347592515,1735935038270,-500.0,0.00019178,2]
[347592516,1735935038279,-500.0,0.00019178,2]
[347592518,1735935038288,-500.0,0.00019178,2]
[347592519,1735935038298,-2958.8,0.00019178,2]
[347592520,1735935038307,-933.2,0.00019178,2]
[347592521,1735935038316,-500.0,0.00019178,2]
[347592522,1735935038326,-500.0,0.00019178,2]
[347592523,1735935038335,-383.52264034,0.00019178,2]
[347592524,1735935038345,-500.0,0.00019178,2]
[347592525,1735935038355,-500.0,0.00019178,2]
[347592526,1735935038365,-935.39,0.00019178,2]
[347592527,1735935038374,-500.0,0.00019178,2]
[347592528,1735935038384,-500.0,0.00019178,2]
[347592529,1735935038396,-311.771063,0.00019178,2]
[347592530,1735935038414,-311.771063,0.00019178,2]
[347592531,1735935038423,-311.771063,0.00019178,2]
[347592532,1735935038432,-500.0,0.00019178,2]
[347592534,1735935038441,-500.0,0.00019178,2]
[347592536,1735935038450,-311.771063,0.00019178,2]
[347592537,1735935038459,-311.771063,0.00019178,2]
[347592539,1735935038468,-311.771063,0.00019178,2]
[347592541,1735935038478,-500.0,0.00019178,2]
[347592543,1735935038487,-500.0,0.00019178,2]
[347592545,1735935038496,-521.23,0.00019178,2]
[347592547,1735935038505,-500.0,0.00019178,2]
[347592549,1735935038515,-500.0,0.00019178,2]
[347592551,1735935038525,-500.0,0.00019178,2]
[347592553,1735935038534,-500.0,0.00019178,2]
[347592555,1735935038543,-197.222034,0.00019178,2]
[347592556,1735935038553,-500.0,0.00019178,2]
[347592557,1735935038563,-500.0,0.00019178,2]
[347592559,1735935038573,-500.0,0.00019178,2]
[347592561,1735935038584,-197.222034,0.00019178,2]
[347592563,1735935038594,-190.934723,0.00019178,2]
[347592565,1735935038604,-500.0,0.00019178,2]
[347592567,1735935038614,-190.934723,0.00019178,2]
[347592569,1735935038624,-792.64,0.00019178,2]
[347592571,1735935038633,-500.0,0.00019178,2]
[347592573,1735935038647,-505.31782053,0.00019178,2]
[347592575,1735935038657,-225.85997549,0.00019178,2]
[347592576,1735935038666,-190.934723,0.00019178,2]
[347592578,1735935038675,-190.934723,0.00019178,2]
[347592580,1735935038685,-500.0,0.00019178,2]
[347592582,1735935038694,-500.0,0.00019178,2]
[347592584,1735935038703,-500.0,0.00019178,2]
[347592586,1735935038713,-629.23,0.00019178,2]
[347592589,1735935038724,-500.0,0.00019178,2]
[347592591,1735935038733,-500.0,0.00019178,2]
[347592592,1735935038743,-2030.18,0.00019178,2]
[347592595,1735935038754,-500.0,0.00019178,2]
[347592597,1735935038764,-500.0,0.00019178,2]
[347592599,1735935038773,-500.0,0.00019178,2]
[347592601,1735935038782,-692.63,0.00019178,2]
[347592602,1735935038791,-500.0,0.00019178,2]
[347592605,1735935038800,-500.0,0.00019178,2]
[347592608,1735935038810,-1191.7,0.00019178,2]
[347592610,1735935038819,-500.0,0.00019178,2]
[347592612,1735935038828,-500.0,0.00019178,2]
[347592614,1735935038837,-500.0,0.00019178,2]
[347592616,1735935038846,-500.0,0.00019178,2]
[347592618,1735935038855,-500.0,0.00019178,2]
[347592620,1735935038864,-500.0,0.00019178,2]
[347592622,1735935038874,-500.0,0.00019178,2]
[347592624,1735935038883,-500.0,0.00019178,2]
[347592625,1735935038895,-1078.14,0.00019178,2]
[347592626,1735935038904,-500.0,0.00019178,2]
[347592627,1735935038913,-500.0,0.00019178,2]
[347592628,1735935038923,-500.0,0.00019178,2]
[347592629,1735935038933,-2748.76,0.00019178,2]
[347592630,1735935038943,-500.0,0.00019178,2]
[347592631,1735935038953,-500.0,0.00019178,2]
[347592632,1735935038964,-200.386854,0.00019178,2]
[347592633,1735935038976,-200.386854,0.00019178,2]
[347592634,1735935038987,-559.37,0.00019178,2]
[347592635,1735935038997,-500.0,0.00019178,2]
[347592636,1735935039008,-500.0,0.00019178,2]
[347592637,1735935039018,-500.0,0.00019178,2]
[347592638,1735935039028,-200.386854,0.00019178,2]
[347592639,1735935039037,-200.386854,0.00019178,2]
[347592640,1735935039047,-500.0,0.00019178,2]
[347592641,1735935039058,-500.0,0.00019178,2]
[347592642,1735935039069,-500.0,0.00019178,2]
[347592643,1735935039079,-500.0,0.00019178,2]
[347592644,1735935039089,-500.0,0.00019178,2]
[347592645,1735935039099,-1202.46,0.00019178,2]
[347592646,1735935039108,-500.0,0.00019178,2]
[347592647,1735935039117,-1648.67,0.00019178,2]
[347592648,1735935039127,-500.0,0.00019178,2]
[347592649,1735935039136,-368.89847625,0.00019178,2]
[347592650,1735935039148,-415.98699023,0.00019178,2]
[347592651,1735935039159,-500.0,0.00019178,2]
[347592652,1735935039168,-500.0,0.00019178,2]
[347592653,1735935039177,-409.85561352,0.00019178,2]
[347592654,1735935039186,-514.8,0.00019178,2]
[347592655,1735935039195,-2408.54,0.00019178,2]
[347592656,1735935039204,-500.0,0.00019178,2]
[347592657,1735935039213,-37372.86,0.00019178,2]
[347592658,1735935039223,-500.0,0.00019178,2]
[347592659,1735935039233,-685.53,0.00019178,2]
[347592660,1735935039242,-993.74,0.00019178,2]
[347592661,1735935039251,-152.334057,0.00019178,2]
[347592662,1735935039260,-500.0,0.00019178,2]
[347592663,1735935039269,-500.0,0.00019178,2]
[347592664,1735935039278,-500.0,0.00019178,2]
[347592665,1735935039288,-151.0,0.00019178,2]
[347592666,1735935039298,-151.0,0.00019178,2]
[347592667,1735935039311,-500.0,0.00019178,2]
[347592668,1735935039327,-500.0,0.00019178,2]
[347592669,1735935039339,-1044.5,0.00019178,2]
[347592670,1735935039348,-500.0,0.00019178,2]
[347592671,1735935039357,-938.39,0.00019178,2]
[347592672,1735935039366,-500.0,0.00019178,2]
[347592673,1735935039376,-500.0,0.00019178,2]
[347592674,1735935039385,-500.0,0.00019178,2]
[347592675,1735935039397,-763.67,0.00019178,2]
[347592676,1735935039406,-500.0,0.00019178,2]
[347592677,1735935039415,-500.0,0.00019178,2]
[347592678,1735935039424,-500.0,0.00019178,2]
[347592679,1735935039434,-500.0,0.00019178,2]
[347592680,1735935039444,-500.0,0.00019178,2]
[347592681,1735935039453,-1114.47,0.00019178,2]
[347592682,1735935039462,-151.0,0.00019178,2]
[347592683,1735935039471,-151.0,0.00019178,2]
[347592684,1735935039481,-500.0,0.00019178,2]
[347592685,1735935039490,-500.0,0.00019178,2]
[347592686,1735935039501,-522.11190142,0.00019178,2]
[347592687,1735935039510,-158.797415,0.00019178,2]
[347592688,1735935039520,-376.37683528,0.00019215,2]
[347592689,1735935039529,-200.386854,0.0001922,2]
[347592690,1735935039539,-200.386854,0.0001922,2]
[347592691,1735935039548,-151.611452,0.0001922,2]
[347592692,1735935039557,-151.0,0.0001922,2]
[347592693,1735935039567,-7527.09243801,0.0001922,2]
[347592694,1735935039577,-500.0,0.00019234,7]
[347592695,1735935039587,-151.0,0.00019265,2]
[347592696,1735935039596,-151.0,0.00019265,2]
[347592697,1735935039605,-151.0,0.00019265,2]
[347592698,1735935039615,-302.84859387,0.00019273,2]
[347592699,1735935039625,-376.37683528,0.00019284,2]
[347592700,1735935039636,-515.0,0.000193,8]
[347592701,1735935039649,-376.37683528,0.00019352,2]
[347592702,1735935039658,-188.8247293,0.00019404,2]
[347592703,1735935039668,-606.34140491,0.00019451,2]
[347592704,1735935039679,-160.0,0.00019451,2]
[347592705,1735935039688,-366.652858,0.00019452,2]
[347592706,1735935039807,-366.652858,0.00019452,2]
[347592707,1735935039819,-151.0,0.00019452,2]
[347592708,1735935039828,-366.652858,0.00019452,2]
[347592709,1735935039837,-366.652858,0.00019452,2]
[347592710,1735935039847,-151.0,0.00019452,2]
[347592711,1735935039856,-500.0,0.00019452,3]
[347592712,1735935039865,-500.0,0.00019452,3]
[347592713,1735935039875,-500.0,0.00019452,3]
[347592714,1735935039884,-500.0,0.00019452,3]
[347592715,1735935039896,-500.0,0.00019452,3]
[347592716,1735935039906,-151.0,0.00019452,2]
[347592717,1735935039915,-500.0,0.00019452,3]
[347592718,1735935039924,-151.0,0.00019452,2]
[347592719,1735935039934,-151.0,0.00019452,2]
[347592720,1735935039945,-151.0,0.00019452,2]
[347592721,1735935039955,-151.0,0.00019452,2]
[347592722,1735935039965,-151.0,0.00019452,2]
[347592723,1735935039974,-151.0,0.00019452,2]
[347592724,1735935039983,-500.0,0.00019452,3]
[347592725,1735935039993,-608.94,0.00019452,3]
[347592726,1735935040003,-500.0,0.00019452,3]
[347592727,1735935040012,-500.0,0.00019452,3]
[347592728,1735935040022,-379.19017732,0.00019452,3]
[347592730,1735935040031,-500.0,0.00019452,3]
[347592732,1735935040041,-151.0,0.00019452,2]
[347592733,1735935040050,-151.0,0.00019452,2]
[347592734,1735935040059,-151.0,0.00019452,2]
[347592735,1735935040070,-151.0,0.00019452,2]
[347592736,1735935040079,-151.0,0.00019452,2]
[347592737,1735935040089,-151.0,0.00019452,2]
[347592738,1735935040098,-500.0,0.00019452,3]
[347592739,1735935040107,-151.0,0.00019452,2]
[347592740,1735935040116,-151.0,0.00019452,2]
[347592741,1735935040126,-151.0,0.00019452,2]
[347592742,1735935040136,-151.0,0.00019452,2]
[347592743,1735935040146,-623.09,0.00019452,3]
[347592744,1735935040155,-582.01,0.00019452,3]
[347592745,1735935040164,-500.0,0.00019452,3]
[347592746,1735935040173,-595.35,0.00019452,3]
[347592748,1735935040182,-500.0,0.00019452,3]
[347592749,1735935040192,-500.0,0.00019452,3]
[347592750,1735935040201,-500.0,0.00019452,3]
[347592751,1735935040210,-500.0,0.00019452,3]
[347592752,1735935040220,-500.0,0.00019452,3]
[347592753,1735935040229,-500.0,0.00019452,3]
[347592754,1735935040239,-500.0,0.00019452,3]
[347592755,1735935040247,-518.81,0.00019452,3]
[347592756,1735935040257,-4308.3,0.00019452,3]
[347592757,1735935040266,-673.74,0.00019452,3]
[347592758,1735935040275,-500.0,0.00019452,3]
[347592759,1735935040284,-985.06,0.00019452,3]
[347592761,1735935040294,-897.3,0.00019452,3]
[347592763,1735935040304,-768.999621,0.00019452,2]
[347592764,1735935040313,-768.999621,0.00019452,2]
[347592765,1735935040323,-178.758946,0.00019452,2]
[347592766,1735935040333,-178.758946,0.00019452,2]
[347592767,1735935040342,-768.999621,0.00019452,2]